fUSD/lending_fUSD_20250211
["ID","MTS","AMOUNT","RATE_DAILY","PERIOD"]
[352732348,1739281854030,-2914.39,0.00010958,2]
[352732349,1739281854040,-500.0,0.00010958,2]
[352732350,1739281854049,-153.040933,0.00010958,2]
[352732351,1739281854058,-500.0,0.00010958,2]
[352732352,1739281854068,-504.89483573,0.00010958,2]
[352732353,1739281854077,-500.0,0.00010958,2]
[352732354,1739281854086,-1960.65,0.00010958,2]
[352732355,1739281854095,-540.63988318,0.00010958,2]
[352732356,1739281854104,-500.79430067,0.00010958,2]
[352732357,1739281854114,-500.0,0.00010958,2]
[352732358,1739281854124,-3113.66,0.00010958,2]
[352732359,1739281854133,-500.0,0.00010958,2]
[352732360,1739281854143,-1223.0,0.00010958,2]
[352732361,1739281854152,-2490.03,0.00010958,2]
[352732362,1739281854161,-500.31864885,0.00010958,2]
[352732363,1739281854171,-456.1322293,0.00010958,2]
[352732364,1739281854181,-500.0,0.00010958,2]
[352732365,1739281854190,-2389.47485436,0.00010958,2]
[352732366,1739281854217,-2317.07514564,0.00010958,2]
[352732367,1739281854227,-500.0,0.00010958,2]
[352732368,1739281854240,-500.0,0.00010958,2]
[352732369,1739281854249,-500.0,0.00010958,2]
[352732370,1739281854258,-500.0,0.00010958,2]
[352732371,1739281854267,-3424.62,0.00010958,2]
[352732372,1739281854280,-515.84812463,0.00010958,2]
[352732373,1739281854291,-500.0,0.00010958,2]
[352732374,1739281854300,-535.73141106,0.00010958,2]
[352732375,1739281854311,-500.0,0.00010958,2]
[352732376,1739281854323,-500.0,0.00010958,2]
[352732377,1739281854332,-223.60925343,0.00010958,2]
[352732378,1739281854342,-500.45145198,0.00010958,2]
[352732379,1739281854352,-500.0,0.00010958,2]
[352732380,1739281854361,-761.22,0.00010958,2]
[352732381,1739281854371,-500.0,0.00010958,2]
[352732382,1739281854380,-341.91799751,0.00010958,2]
[352732383,1739281854389,-500.0,0.00010958,2]
[352732384,1739281854399,-500.0,0.00010958,2]
[352732385,1739281854408,-500.0,0.00010958,2]
[352732386,1739281854417,-500.0,0.00010958,2]
[352732387,1739281854427,-500.0,0.00010958,2]
[352732388,1739281854437,-508.00256875,0.00010958,2]
[352732389,1739281854446,-2653.46,0.00010958,2]
[352732390,1739281854456,-1074.73,0.00010958,2]
[352732391,1739281854465,-500.0,0.00010958,2]
[352732392,1739281854476,-500.0,0.00010958,2]
[352732393,1739281854486,-500.0,0.00010958,2]
[352732394,1739281854495,-500.0,0.00010958,2]
[352732395,1739281854505,-500.0,0.00010958,2]
[352732396,1739281854701,-500.0,0.00010958,2]
[352732397,1739281854712,-687.11,0.00010958,2]
[352732398,1739281854722,-562.5,0.00010958,2]
[352732399,1739281854732,-500.0,0.00010958,2]
[352732400,1739281854742,-500.0,0.00010958,2]
[352732401,1739281854751,-500.0,0.00010958,2]
[352732402,1739281854761,-500.0,0.00010958,2]
[352732403,1739281854770,-2062.9,0.00010958,2]
[352732404,1739281854781,-500.0,0.00010958,2]
[352732405,1739281854791,-2331.02,0.00010958,2]
[352732406,1739281854800,-500.0,0.00010958,2]
[352732407,1739281854809,-3015.5,0.00010958,2]
[352732408,1739281854819,-500.0,0.00010958,2]
[352732409,1739281854829,-500.0,0.00010958,2]
[352732410,1739281854839,-500.0,0.00010958,2]
[352732411,1739281854849,-1421.85,0.00010958,2]
[352732412,1739281854859,-803.26,0.00010958,2]
[352732413,1739281854869,-504.09828916,0.00010958,2]
[352732414,1739281854879,-1766.46,0.00010958,2]
[352732415,1739281854889,-500.0,0.00010958,2]
[352732416,1739281854899,-500.0,0.00010958,2]
[352732417,1739281854907,-500.0,0.00010958,2]
[352732418,1739281854917,-1881.33,0.00010958,2]
[352732419,1739281854926,-500.0,0.00010958,2]
[352732420,1739281854935,-500.0,0.00010958,2]
[352732421,1739281854944,-1032.68,0.00010958,2]
[352732422,1739281854954,-762.48,0.00010958,2]
[352732423,1739281854963,-533.4599666,0.00010958,2]
[352732424,1739281854973,-699.63,0.00010958,2]
[352732425,1739281854983,-500.0,0.00010958,2]
[352732426,1739281854993,-500.0,0.00010958,2]
[352732427,1739281855003,-500.0,0.00010958,2]
[352732428,1739281855013,-243.45637056,0.00010958,2]
[352732429,1739281855049,-256.54362944,0.00010958,2]
[352732430,1739281855058,-325.23685188,0.00010958,2]
[352732431,1739281855068,-3.11151868,0.00010958,2]
[352732432,1739281855080,-1897.35152475,0.00010958,2]
[352732433,1739281855092,-570.09695657,0.00010958,2]
[352732434,1739281855101,-500.0,0.00010958,2]
[352732435,1739281855110,-500.0,0.00010958,2]
[352732436,1739281855120,-1028.46,0.00010958,2]
[352732437,1739281855129,-500.0,0.00010958,2]
[352732438,1739281855138,-992.85,0.00010958,2]
[352732439,1739281855148,-500.0,0.00010958,2]
[352732440,1739281855157,-500.0,0.00010958,2]
[352732441,1739281855166,-65.71009292,0.00010958,2]
[352732442,1739281855185,-434.28990708,0.00010958,2]
[352732443,1739281855195,-1229.33,0.00010958,2]
[352732444,1739281855204,-2434.93,0.00010958,2]
[352732445,1739281855214,-714.36,0.00010958,2]
[352732446,1739281855225,-500.0,0.00010958,2]
[352732447,1739281855235,-500.0,0.00010958,2]
[352732448,1739281855244,-500.0,0.00010958,2]
[352732449,1739281855254,-544.92,0.00010958,2]
[352732450,1739281855263,-3513.35,0.00010958,2]
[352732451,1739281855274,-500.0,0.00010958,2]
[352732452,1739281855286,-500.0,0.00010958,2]
[352732453,1739281855296,-500.0,0.00010958,2]
[352732454,1739281855306,-500.0,0.00010958,2]
[352732455,1739281855315,-500.0,0.00010958,2]
[352732456,1739281855325,-501.33,0.00010958,2]
[352732457,1739281855334,-1000.0,0.00010958,2]
[352732458,1739281855344,-1000.0,0.00010958,2]
[352732459,1739281855353,-1000.0,0.00010958,2]
[352732460,1739281855362,-1000.0,0.00010958,2]
[352732461,1739281855371,-1000.0,0.00010958,2]
[352732462,1739281855381,-1000.0,0.00010958,2]
[352732463,1739281855390,-1000.0,0.00010958,2]
[352732464,1739281855399,-703.38489479,0.00010958,2]
[352732465,1739281856069,-574.07632107,0.00010958,2]
[352732466,1739281856101,-610.02367893,0.00010958,2]
[352732467,1739281856111,-500.0,0.00010958,2]
[352732468,1739281856120,-500.0,0.00010958,2]
[352732469,1739281856130,-500.0,0.00010958,2]
[352732470,1739281856139,-296.61510521,0.00010958,2]
[352732471,1739281856149,-1000.0,0.00010958,2]
[352732472,1739281856158,-1000.0,0.00010958,2]
[352732473,1739281856168,-1000.0,0.00010958,2]
[352732474,1739281856177,-1000.0,0.00010958,2]
[352732475,1739281856187,-1000.0,0.00010958,2]
[352732476,1739281856197,-1000.0,0.00010958,2]
[352732477,1739281856207,-1000.0,0.00010958,2]
[352732478,1739281856216,-365.56661586,0.00010958,2]
[352732479,1739281856240,-634.43338414,0.00010958,2]
[352732480,1739281856249,-288.36196724,0.00010958,2]
[352732481,1739281856260,-667.12564001,0.00010958,2]
[352732482,1739281856272,-44.51239275,0.00010958,2]
[352732483,1739281856283,-571.43760519,0.00010958,2]
[352732484,1739282004093,22.3539,8.973e-05,2]
[352732485,1739282148132,2369.0173514,0.00012,15]
[352732486,1739282343010,500.0,0.0002,120]
[352732488,1739282745322,-150.0,8.835e-05,2]
[352732489,1739282745349,-300.0,8.835e-05,2]
[352732490,1739282745375,-355.5267,8.836e-05,2]
[352732491,1739282745402,-8401.1765,8.836e-05,2]
[352732492,1739282745427,-71880.6301,8.836e-05,2]
[352732493,1739282745452,-4562.6667,8.836e-05,2]
[352732494,1739282801107,-243.77784933,8.835e-05,2]
[352732495,1739282850472,544.41,8.219e-05,2]
[352732496,1739282981002,500.0,0.0002,120]
[352732497,1739282991309,500.0,0.0002,120]
[352732538,1739283031826,-150.0,8.835e-05,2]
[352732540,1739283031835,-1169.59999998,8.836e-05,2]
[352732546,1739283031884,-384.45446665,8.836e-05,2]
[352732548,1739283031896,-322.53566964,8.836e-05,2]
[352732557,1739283031971,-604.23295464,8.836e-05,2]
[352732559,1739283031983,-596.0,8.836e-05,2]
[352732577,1739283032144,-1008.7217319,8.836e-05,2]
[352732621,1739283032447,-2052.3758564,8.836e-05,2]
[352732627,1739283032481,-10506.62985916,8.836e-05,2]
[352732661,1739283037600,-283.71336898,8.836e-05,2]
[352732662,1739283037662,-880.82102011,8.836e-05,2]
[352732663,1739283037674,-28612.83146446,8.836e-05,2]
[352732664,1739283037686,-722.0649438,8.836e-05,2]
[352732665,1739283038172,-4987.94296,8.836e-05,2]
[352732666,1739283038312,-4827.96196751,8.836e-05,2]
[352732667,1739283038324,-422.48106842,8.836e-05,2]
[352732668,1739283038335,-4208.63824568,8.836e-05,2]
[352732669,1739283038346,-302.94245535,8.836e-05,2]
[352732814,1739283039727,-1254.13,8.836e-05,2]
[352732816,1739283039738,-9711.08288,8.836e-05,2]
[352732825,1739283039811,-7533.9854296,8.836e-05,2]
[352732827,1739283039822,-2208.22738323,8.836e-05,2]
[352732835,1739283039886,-3466.23779602,8.836e-05,2]
[352732838,1739283039897,-312.80510145,8.836e-05,2]
[352732840,1739283039909,-397.66349657,8.836e-05,2]
[352732842,1739283039920,-9265.42020841,8.836e-05,2]
[352732844,1739283039931,-2377.40397204,8.836e-05,2]
[352732846,1739283039941,-736.6424,8.836e-05,2]
[352732848,1739283039950,-1000.0,8.851e-05,2]
[352732850,1739283039959,-605.7017,8.973e-05,2]
[352732852,1739283039969,-4977.6461,8.973e-05,2]
[352732854,1739283039978,-1842.2,9.341e-05,2]
[352732856,1739283039988,-1025.8,9.353e-05,2]
[352732858,1739283039997,-151.47,9.701e-05,2]
[352732860,1739283040006,-151.47,9.707e-05,2]
[352732862,1739283040016,-151.47,9.712e-05,2]
[352732864,1739283040025,-151.47,9.717e-05,2]
[352732866,1739283040037,-151.47,9.723e-05,2]
[352732868,1739283040047,-151.47,9.728e-05,2]
[352732870,1739283040056,-150.99,9.728e-05,2]
[352732872,1739283040065,-151.47,9.734e-05,2]
[352732874,1739283040074,-299.99,9.734e-05,2]
[352732876,1739283040084,-151.47,9.739e-05,2]
[352732878,1739283040093,-151.47,9.744e-05,2]
[352732880,1739283040103,-151.47,9.75e-05,2]
[352732882,1739283040112,-500.0,9.764e-05,2]
[352732884,1739283040121,-500.0,9.764e-05,2]
[352732886,1739283040130,-296.66,9.797e-05,2]
[352732887,1739283040140,-250.0,9.843e-05,2]
[352732890,1739283040150,-950.18,9.869e-05,2]
[352732892,1739283040159,-154.3,9.907e-05,2]
[352732918,1739283040402,-1000.0,9.966e-05,2]
[352732920,1739283040412,-2000.0,9.966e-05,2]
[352732922,1739283040421,-169.98,9.984e-05,2]
[352732924,1739283040430,-174.32,0.00010046,2]
[352732926,1739283040439,-506.21,0.00010075,2]
[352732928,1739283040448,-507.64,0.00010075,2]
[352732930,1739283040459,-504.33,0.00010075,2]
[352732932,1739283040468,-491.19,0.00010075,2]
[352732934,1739283040478,-490.66,0.00010075,2]
[352732936,1739283040487,-506.48,0.00010075,2]
[352732938,1739283040496,-494.33,0.00010211,2]
[352732940,1739283040505,-493.41,0.00010211,2]
[352732942,1739283040514,-499.03,0.00010211,2]
[352732944,1739283040523,-2012.57,0.00010211,2]
[352732946,1739283040534,-544.41,0.00010442,2]
[352732948,1739283040543,-13833.54598716,0.00010527,2]
[352732950,1739283040552,-151.4,0.00010575,2]
[352732952,1739283040562,-151.97,0.00010575,2]
[352732954,1739283040571,-151.2,0.00010575,2]
[352732956,1739283040580,-152.26,0.00010575,2]
[352732958,1739283040589,-150.99,0.00010711,2]
[352732960,1739283040599,-150.68,0.00010711,2]
[352732962,1739283040609,-563.26179527,0.00010712,2]
[352732964,1739283040621,-563.26179527,0.00010767,2]
[352732966,1739283040631,-563.26179527,0.00010822,2]
[352732968,1739283040640,-2832.80391,0.0001085,2]
[352732970,1739283040649,-328.41527797,0.00010858,2]
[352732972,1739283040658,-452.8795014,0.00010858,2]
[352732974,1739283040668,-563.26179527,0.00010877,2]
[352732976,1739283040677,-3914.0,0.00010894,2]
[352732978,1739283040686,-155.924,0.00010894,2]
[352732980,1739283040696,-1008.0,0.00010894,2]
[352732982,1739283040710,-1109.0,0.00010894,2]
[352732984,1739283040720,-1154.48,0.00010899,2]
[352732986,1739283040729,-1154.48,0.00010899,2]
[352732988,1739283040739,-1154.48,0.00010899,2]
[352732990,1739283040748,-1154.48,0.00010899,2]
[352732992,1739283040757,-1154.48,0.00010899,2]
[352732994,1739283040766,-1154.48,0.00010899,2]
[352732996,1739283040775,-1154.48,0.00010899,2]
[352732998,1739283040788,-1154.48,0.00010899,2]
[352733000,1739283040797,-1154.48,0.00010899,2]
[352733002,1739283040806,-1154.48,0.00010899,2]
[352733004,1739283040815,-1154.48,0.00010899,2]
[352733006,1739283040825,-1154.48,0.00010899,2]
[352733008,1739283040834,-1154.48,0.00010899,2]
[352733010,1739283040843,-503.56,0.000109,2]
[352733012,1739283040853,-563.26179527,0.00010932,2]
[352733014,1739283040862,-1154.48,0.00010957,2]
[352733016,1739283040872,-1154.48,0.00010957,2]
[352733018,1739283040881,-1154.48,0.00010957,2]
[352733020,1739283040891,-1154.48,0.00010957,2]
[352733022,1739283040901,-177.9104287,0.00010957,2]
[352733024,1739283040911,-171.81860792,0.00010958,2]
[352733026,1739283040920,-299.4469886,0.00010958,2]
[352733028,1739283040929,-502.66046316,0.00010958,2]
[352733030,1739283040939,-500.51786291,0.00010958,2]
[352733032,1739283040948,-500.0,0.00010958,2]
[352733034,1739283040958,-500.0,0.00010958,2]
[352733036,1739283040967,-500.0,0.00010958,2]
[352733038,1739283040976,-522.0,0.00010958,2]
[352733040,1739283040986,-500.0,0.00010958,2]
[352733042,1739283040995,-504.07974977,0.00010958,2]
[352733044,1739283041004,-500.0,0.00010958,2]
[352733046,1739283041013,-500.0,0.00010958,2]
[352733048,1739283041022,-500.0,0.00010958,2]
[352733050,1739283041031,-500.0,0.00010958,2]
[352733052,1739283041041,-501.83467445,0.00010958,2]
[352733054,1739283041050,-500.0,0.00010958,2]
[352733056,1739283041059,-500.0,0.00010958,2]
[352733058,1739283041069,-500.0,0.00010958,2]
[352733060,1739283041078,-500.0,0.00010958,2]
[352733062,1739283041087,-536.54748541,0.00010958,2]
[352733064,1739283041096,-503.70900992,0.00010958,2]
[352733066,1739283041105,-500.0,0.00010958,2]
[352733068,1739283041115,-500.0,0.00010958,2]
[352733070,1739283041124,-500.0,0.00010958,2]
[352733072,1739283041133,-502.22945296,0.00010958,2]
[352733074,1739283041142,-500.0,0.00010958,2]
[352733076,1739283041151,-523.47286786,0.00010958,2]
[352733078,1739283041160,-500.0,0.00010958,2]
[352733080,1739283041170,-500.0,0.00010958,2]
[352733082,1739283041179,-500.0,0.00010958,2]
[352733084,1739283041189,-500.0,0.00010958,2]
[352733086,1739283041198,-500.0,0.00010958,2]
[352733088,1739283041208,-500.0,0.00010958,2]
[352733090,1739283041218,-500.0,0.00010958,2]
[352733092,1739283041227,-190.02391407,0.00010958,2]
[352733094,1739283041236,-500.0,0.00010958,2]
[352733096,1739283041246,-501.8188706,0.00010958,2]
[352733098,1739283041255,-500.0,0.00010958,2]
[352733100,1739283041264,-501.77270155,0.00010958,2]
[352733102,1739283041273,-500.0,0.00010958,2]
[352733104,1739283041283,-500.0,0.00010958,2]
[352733106,1739283041292,-500.0,0.00010958,2]
[352733108,1739283041301,-500.0,0.00010958,2]
[352733110,1739283041312,-500.0,0.00010958,2]
[352733112,1739283041321,-500.0,0.00010958,2]
[352733114,1739283041330,-500.0,0.00010958,2]
[352733116,1739283041339,-509.07773861,0.00010958,2]
[352733118,1739283041348,-500.0,0.00010958,2]
[352733120,1739283041357,-504.46347007,0.00010958,2]
[352733122,1739283041366,-502.72214065,0.00010958,2]
[352733124,1739283041375,-500.0,0.00010958,2]
[352733126,1739283041383,-500.0,0.00010958,2]
[352733128,1739283041393,-500.0,0.00010958,2]
[352733130,1739283041402,-500.0,0.00010958,2]
[352733132,1739283041411,-500.0,0.00010958,2]
[352733134,1739283041420,-500.0,0.00010958,2]
[352733136,1739283041428,-501.99635662,0.00010958,2]
[352733138,1739283041438,-500.0,0.00010958,2]
[352733139,1739283041447,-500.0,0.00010958,2]
[352733141,1739283041456,-500.0,0.00010958,2]
[352733143,1739283041465,-500.0,0.00010958,2]
[352733145,1739283041474,-565.39511532,0.00010958,2]
[352733147,1739283041484,-545.31,0.00010958,2]
[352733149,1739283041493,-500.0,0.00010958,2]
[352733151,1739283041502,-500.0,0.00010958,2]
[352733153,1739283041511,-500.0,0.00010958,2]
[352733155,1739283041520,-500.0,0.00010958,2]
[352733157,1739283041529,-500.0,0.00010958,2]
[352733159,1739283041539,-500.0,0.00010958,2]
[352733161,1739283041548,-528.77,0.00010958,2]
[352733163,1739283041558,-503.96475943,0.00010958,2]
[352733165,1739283041567,-500.0,0.00010958,2]
[352733167,1739283041577,-500.0,0.00010958,2]
[352733169,1739283041586,-503.52059853,0.00010958,2]
[352733171,1739283041595,-500.0,0.00010958,2]
[352733173,1739283041606,-572.56179204,0.00010958,2]
[352733175,1739283041617,-500.0,0.00010958,2]
[352733177,1739283041626,-493.38970131,0.00010958,2]
[352733178,1739283041635,-500.0,0.00010958,2]
[352733179,1739283041644,-505.98748073,0.00010958,2]
[352733180,1739283041654,-500.0,0.00010958,2]
[352733181,1739283041663,-500.0,0.00010958,2]
[352733182,1739283041672,-500.0,0.00010958,2]
[352733183,1739283041681,-500.0,0.00010958,2]
[352733184,1739283041691,-500.0,0.00010958,2]
[352733185,1739283041700,-623.89,0.00010958,2]
[352733186,1739283041710,-2289.514115,0.00010958,2]
[352733187,1739283041720,-500.0,0.00010958,2]
[352733188,1739283041730,-500.0,0.00010958,2]
[352733189,1739283041740,-500.0,0.00010958,2]
[352733190,1739283041749,-160.739921,0.00010958,2]
[352733191,1739283041759,-500.0,0.00010958,2]
[352733192,1739283041768,-508.87211195,0.00010958,2]
[352733193,1739283041777,-500.0,0.00010958,2]
[352733194,1739283041789,-155.509798,0.00010958,2]
[352733195,1739283041798,-503.39186551,0.00010958,2]
[352733196,1739283041808,-504.56440985,0.00010958,2]
[352733197,1739283041817,-500.0,0.00010958,2]
[352733199,1739283041826,-500.0,0.00010958,2]
[352733201,1739283041835,-513.21311406,0.00010958,2]
[352733203,1739283041845,-912.071354,0.00010958,2]
[352733204,1739283041855,-562.39,0.00010958,2]
[352733205,1739283041864,-500.0,0.00010958,2]
[352733206,1739283041874,-500.0,0.00010958,2]
[352733207,1739283041885,-500.0,0.00010958,2]
[352733208,1739283041895,-500.0,0.00010958,2]
[352733209,1739283041909,-500.0,0.00010958,2]
[352733210,1739283041918,-500.0,0.00010958,2]
[352733211,1739283041928,-620.94352836,0.00010958,2]
[352733212,1739283041938,-1335.42,0.00010958,2]
[352733213,1739283041947,-500.0,0.00010958,2]
[352733214,1739283041957,-500.0,0.00010958,2]
[352733215,1739283041967,-500.0,0.00010958,2]
[352733216,1739283041976,-511.2033621,0.00010958,2]
[352733217,1739283041986,-500.0,0.00010958,2]
[352733218,1739283041995,-500.0,0.00010958,2]
[352733219,1739283042005,-500.0,0.00010958,2]
[352733220,1739283042015,-500.0,0.00010958,2]
[352733221,1739283042024,-501.77784524,0.00010958,2]
[352733222,1739283042033,-500.0,0.00010958,2]
[352733223,1739283042044,-500.0,0.00010958,2]
[352733224,1739283042054,-502.82582375,0.00010958,2]
[352733225,1739283042063,-500.0,0.00010958,2]
[352733226,1739283042072,-500.0,0.00010958,2]
[352733227,1739283042081,-1026.73,0.00010958,2]
[352733228,1739283042091,-500.0,0.00010958,2]
[352733229,1739283042100,-500.0,0.00010958,2]
[352733230,1739283042109,-500.0,0.00010958,2]
[352733231,1739283042118,-500.0,0.00010958,2]
[352733232,1739283042127,-512.05213136,0.00010958,2]
[352733233,1739283042136,-500.0,0.00010958,2]
[352733234,1739283042146,-500.0,0.00010958,2]
[352733235,1739283042155,-500.0,0.00010958,2]
[352733236,1739283042164,-500.0,0.00010958,2]
[352733237,1739283042173,-500.0,0.00010958,2]
[352733238,1739283042182,-501.35790133,0.00010958,2]
[352733239,1739283042191,-1291.73,0.00010958,2]
[352733240,1739283042204,-531.12984117,0.00010958,2]
[352733241,1739283042213,-500.0,0.00010958,2]
[352733242,1739283042224,-502.88093868,0.00010958,2]
[352733243,1739283042233,-500.0,0.00010958,2]
[352733244,1739283042243,-217.86466076,0.00010958,2]
[352733245,1739283042252,-500.0,0.00010958,2]
[352733246,1739283042262,-500.0,0.00010958,2]
[352733247,1739283042271,-384.75407931,0.00010958,2]
[352733248,1739283042280,-500.0,0.00010958,2]
[352733249,1739283042293,-500.0,0.00010958,2]
[352733250,1739283042302,-500.0,0.00010958,2]
[352733251,1739283042312,-500.0,0.00010958,2]
[352733252,1739283042321,-500.0,0.00010958,2]
[352733253,1739283042331,-1006.21,0.00010958,2]
[352733254,1739283042340,-562.43837563,0.00010958,2]
[352733255,1739283042350,-500.0,0.00010958,2]
[352733256,1739283042360,-500.0,0.00010958,2]
[352733257,1739283042369,-504.33478634,0.00010958,2]
[352733258,1739283042378,-500.0,0.00010958,2]
[352733259,1739283042388,-501.25278451,0.00010958,2]
[352733260,1739283042397,-500.0,0.00010958,2]
[352733261,1739283042407,-654.08,0.00010958,2]
[352733262,1739283042417,-500.0,0.00010958,2]
[352733263,1739283042426,-500.0,0.00010958,2]
[352733264,1739283042436,-500.0,0.00010958,2]
[352733266,1739283042446,-500.0,0.00010958,2]
[352733268,1739283042455,-500.0,0.00010958,2]
[352733269,1739283042465,-500.0,0.00010958,2]
[352733271,1739283042475,-500.0,0.00010958,2]
[352733273,1739283042485,-500.0,0.00010958,2]
[352733275,1739283042494,-500.0,0.00010958,2]
[352733277,1739283042504,-500.0,0.00010958,2]
[352733279,1739283042514,-648.91,0.00010958,2]
[352733281,1739283042523,-501.8576505,0.00010958,2]
[352733283,1739283042533,-500.0,0.00010958,2]
[352733285,1739283042545,-500.0,0.00010958,2]
[352733287,1739283042555,-500.0,0.00010958,2]
[352733288,1739283042564,-500.0,0.00010958,2]
[352733289,1739283042574,-829.91,0.00010958,2]
[352733290,1739283042583,-500.0,0.00010958,2]
[352733291,1739283042593,-500.0,0.00010958,2]
[352733294,1739283042604,-500.0,0.00010958,2]
[352733295,1739283042615,-500.0,0.00010958,2]
[352733296,1739283042624,-500.0,0.00010958,2]
[352733297,1739283042635,-1283.05,0.00010958,2]
[352733298,1739283042646,-500.0,0.00010958,2]
[352733299,1739283042656,-500.0,0.00010958,2]
[352733300,1739283042666,-356.32294848,0.00010958,2]
[352733301,1739283042676,-500.0,0.00010958,2]
[352733302,1739283042687,-500.0,0.00010958,2]
[352733303,1739283042697,-500.0,0.00010958,2]
[352733304,1739283042706,-500.0,0.00010958,2]
[352733305,1739283042716,-501.42547574,0.00010958,2]
[352733306,1739283042725,-250.75179391,0.00010958,2]
[352733307,1739283042734,-500.0,0.00010958,2]
[352733308,1739283042744,-500.0,0.00010958,2]
[352733309,1739283042753,-500.0,0.00010958,2]
[352733311,1739283042763,-500.0,0.00010958,2]
[352733313,1739283042773,-500.0,0.00010958,2]
[352733315,1739283042782,-500.0,0.00010958,2]
[352733317,1739283042794,-500.0,0.00010958,2]
[352733319,1739283042803,-500.0,0.00010958,2]
[352733321,1739283042813,-501.15554484,0.00010958,2]
[352733323,1739283042822,-500.0,0.00010958,2]
[352733325,1739283042832,-500.0,0.00010958,2]
[352733327,1739283042842,-500.0,0.00010958,2]
[352733329,1739283042851,-500.0,0.00010958,2]
[352733331,1739283042861,-627.22,0.00010958,2]
[352733333,1739283042870,-784.62,0.00010958,2]
[352733335,1739283042881,-500.0,0.00010958,2]
[352733337,1739283042890,-501.99429771,0.00010958,2]
[352733339,1739283042900,-500.0,0.00010958,2]
[352733341,1739283042910,-500.0,0.00010958,2]
[352733343,1739283042920,-500.0,0.00010958,2]
[352733345,1739283042929,-500.0,0.00010958,2]
[352733347,1739283042939,-500.0,0.00010958,2]
[352733349,1739283042948,-500.0,0.00010958,2]
[352733351,1739283042957,-500.0,0.00010958,2]
[352733353,1739283042967,-500.0,0.00010958,2]
[352733355,1739283042976,-502.26121347,0.00010958,2]
[352733357,1739283042986,-500.0,0.00010958,2]
[352733359,1739283042996,-500.0,0.00010958,2]
[352733361,1739283043006,-1049.93,0.00010958,2]
[352733363,1739283043016,-500.0,0.00010958,2]
[352733365,1739283043026,-500.0,0.00010958,2]
[352733367,1739283043037,-502.23505563,0.00010958,2]
[352733369,1739283043047,-510.52090076,0.00010958,2]
[352733371,1739283043056,-510.88666813,0.00010958,2]
[352733373,1739283043066,-500.0,0.00010958,2]
[352733375,1739283043075,-503.82396479,0.00010958,2]
[352733377,1739283043085,-510.30707489,0.00010958,2]
[352733378,1739283043094,-656.24,0.00010958,2]
[352733379,1739283043104,-500.0,0.00010958,2]
[352733380,1739283043114,-500.0,0.00010958,2]
[352733381,1739283043124,-717.49,0.00010958,2]
[352733382,1739283043134,-503.99988123,0.00010958,2]
[352733383,1739283043144,-750.73,0.00010958,2]
[352733384,1739283043153,-500.0,0.00010958,2]
[352733385,1739283043163,-503.85090054,0.00010958,2]
[352733386,1739283043172,-899.58,0.00010958,2]
[352733387,1739283043182,-500.0,0.00010958,2]
[352733388,1739283043191,-501.90569672,0.00010958,2]
[352733389,1739283043201,-500.0,0.00010958,2]
[352733390,1739283043211,-503.19526695,0.00010958,2]
[352733391,1739283043220,-951.35,0.00010958,2]
[352733392,1739283043230,-525.24665802,0.00010958,2]
[352733393,1739283043239,-1059.29,0.00010958,2]
[352733396,1739283043249,-500.0,0.00010958,2]
[352733397,1739283043259,-500.0,0.00010958,2]
[352733399,1739283043268,-500.0,0.00010958,2]